fUSD/lending_fUSD_20260409
["ID","MTS","AMOUNT","RATE_DAILY","PERIOD"]
[420107198,1775681447382,-500.0,0.000156,2]
[420107199,1775681447392,-500.0,0.000156,2]
[420107200,1775681447402,-500.0,0.000156,2]
[420107201,1775681447411,-500.0,0.000156,2]
[420107202,1775681447422,-500.0,0.000156,2]
[420107203,1775681447432,-500.0,0.000156,2]
[420107204,1775681447441,-701.5812404,0.000156,2]
[420107205,1775681447461,-500.0,0.000156,2]
[420107206,1775681447472,-500.0,0.000156,2]
[420107207,1775681447482,-500.0,0.000156,2]
[420107208,1775681447493,-500.0,0.000156,2]
[420107209,1775681447504,-500.0,0.000156,2]
[420107210,1775681447513,-500.0,0.000156,2]
[420107211,1775681447523,-500.0,0.000156,2]
[420107212,1775681447534,-500.0,0.000156,2]
[420107213,1775681447544,-500.0,0.000156,2]
[420107214,1775681447554,-500.0,0.000156,2]
[420107215,1775681447564,-762.0,0.000156,2]
[420107216,1775681447573,-252.66203228,0.000156,2]
[420107217,1775681447583,-327.00447356,0.000156,2]
[420107218,1775681447594,-222.04390486,0.000156,2]
[420107219,1775681447604,-350.0,0.00015607,3]
[420107220,1775681447615,-500.0,0.00015609,2]
[420107221,1775681447626,-500.0,0.00015609,2]
[420107222,1775681447637,-500.0,0.00015609,2]
[420107223,1775681447647,-500.0,0.00015609,2]
[420107224,1775681447657,-500.0,0.00015609,2]
[420107225,1775681447667,-500.0,0.00015609,2]
[420107226,1775681447678,-310.58484481,0.00015609,2]
[420107227,1775681447689,-1286.23,0.00015609,2]
[420107228,1775681447700,-1286.23,0.00015609,2]
[420107229,1775681447713,-1286.23,0.00015609,2]
[420107230,1775681447725,-1286.23,0.00015609,2]
[420107231,1775681447736,-1286.23,0.00015609,2]
[420107232,1775681447748,-1286.23,0.00015609,2]
[420107233,1775681447759,-1286.23,0.00015609,2]
[420107234,1775681447770,-500.0,0.00015609,2]
[420107235,1775681447780,-500.0,0.00015609,2]
[420107236,1775681447790,-500.0,0.00015609,2]
[420107237,1775681447801,-500.0,0.00015609,2]
[420107238,1775681447810,-500.0,0.00015609,2]
[420107239,1775681447820,-500.0,0.00015609,2]
[420107240,1775681447830,-500.0,0.00015609,2]
[420107241,1775681447840,-504.74596653,0.00015609,2]
[420107242,1775681447851,-500.0,0.00015609,2]
[420107243,1775681447862,-500.0,0.00015609,2]
[420107244,1775681447872,-500.0,0.00015609,2]
[420107245,1775681447883,-500.0,0.00015609,2]
[420107246,1775681447893,-500.0,0.00015609,2]
[420107247,1775681447904,-500.0,0.00015609,2]
[420107248,1775681447914,-500.0,0.00015609,2]
[420107249,1775681447924,-500.0,0.00015609,2]
[420107250,1775681448441,-500.0,0.00015609,2]
[420107251,1775681448451,-500.0,0.00015609,2]
[420107252,1775681448460,-500.0,0.00015609,2]
[420107253,1775681448470,-500.0,0.00015609,2]
[420107254,1775681448479,-500.0,0.00015609,2]
[420107255,1775681448488,-500.0,0.00015609,2]
[420107256,1775681448498,-323.69736377,0.00015609,2]
[420107257,1775681448507,-500.0,0.00015609,2]
[420107258,1775681448517,-500.0,0.00015609,2]
[420107259,1775681448527,-500.0,0.00015609,2]
[420107260,1775681448537,-500.0,0.00015609,2]
[420107261,1775681448547,-500.0,0.00015609,2]
[420107262,1775681448556,-500.0,0.00015609,2]
[420107263,1775681448565,-500.0,0.00015609,2]
[420107264,1775681448575,-500.0,0.00015609,2]
[420107265,1775681448585,-500.0,0.00015609,2]
[420107266,1775681448595,-500.0,0.00015609,2]
[420107267,1775681448605,-500.0,0.00015609,2]
[420107268,1775681448615,-500.0,0.00015609,2]
[420107269,1775681448625,-500.0,0.00015609,2]
[420107270,1775681448635,-500.0,0.00015609,2]
[420107271,1775681448645,-500.0,0.00015609,2]
[420107272,1775681448655,-500.0,0.00015609,2]
[420107273,1775681448665,-500.0,0.00015609,2]
[420107274,1775681448675,-500.0,0.00015609,2]
[420107275,1775681448685,-500.0,0.00015609,2]
[420107276,1775681448694,-500.0,0.00015609,2]
[420107277,1775681448705,-500.0,0.00015609,2]
[420107278,1775681448714,-500.0,0.00015609,2]
[420107279,1775681448725,-500.0,0.00015609,2]
[420107280,1775681448735,-500.0,0.00015609,2]
[420107281,1775681448744,-500.0,0.00015609,2]
[420107282,1775681448754,-500.0,0.00015609,2]
[420107283,1775681448763,-500.0,0.00015609,2]
[420107284,1775681448773,-500.0,0.00015609,2]
[420107285,1775681448782,-500.0,0.00015609,2]
[420107286,1775681448792,-500.0,0.00015609,2]
[420107287,1775681448802,-500.0,0.00015609,2]
[420107288,1775681448812,-500.0,0.00015609,2]
[420107289,1775681448821,-500.0,0.00015609,2]
[420107290,1775681448831,-500.0,0.00015609,2]
[420107291,1775681448840,-500.0,0.00015609,2]
[420107292,1775681448849,-500.0,0.00015609,2]
[420107293,1775681448859,-500.0,0.00015609,2]
[420107294,1775681448868,-500.0,0.00015609,2]
[420107295,1775681448878,-500.0,0.00015609,2]
[420107296,1775681448887,-500.0,0.00015609,2]
[420107297,1775681448896,-500.0,0.00015609,2]
[420107298,1775681448907,-500.0,0.00015609,2]
[420107299,1775681448916,-500.0,0.00015609,2]
[420107300,1775681448926,-500.0,0.00015609,2]
[420107301,1775681448935,-500.0,0.00015609,2]
[420107302,1775681448945,-500.0,0.00015609,2]
[420107303,1775681448955,-500.0,0.00015609,2]
[420107304,1775681448964,-500.0,0.00015609,2]
[420107305,1775681448974,-500.0,0.00015609,2]
[420107306,1775681448985,-500.0,0.00015609,2]
[420107307,1775681448995,-500.0,0.00015609,2]
[420107308,1775681449004,-500.0,0.00015609,2]
[420107309,1775681449014,-500.0,0.00015609,2]
[420107310,1775681449023,-500.0,0.00015609,2]
[420107311,1775681449033,-500.0,0.00015609,2]
[420107312,1775681449042,-500.0,0.00015609,2]
[420107313,1775681449052,-500.0,0.00015609,2]
[420107314,1775681449061,-500.0,0.00015609,2]
[420107315,1775681449071,-500.0,0.00015609,2]
[420107316,1775681449080,-500.0,0.00015609,2]
[420107317,1775681449090,-500.0,0.00015609,2]
[420107318,1775681449099,-500.0,0.00015609,2]
[420107319,1775681449109,-500.0,0.00015609,2]
[420107320,1775681449118,-454.40497159,0.00015609,2]
[420107321,1775681449133,-500.0,0.00015609,2]
[420107322,1775681449142,-500.0,0.00015609,2]
[420107323,1775681449152,-500.0,0.00015609,2]
[420107324,1775681449162,-500.0,0.00015609,2]
[420107325,1775681449173,-500.0,0.00015609,2]
[420107326,1775681449182,-500.0,0.00015609,2]
[420107327,1775681449192,-500.0,0.00015609,2]
[420107328,1775681449203,-500.0,0.00015609,2]
[420107329,1775681449213,-500.0,0.00015609,2]
[420107330,1775681449223,-500.0,0.00015609,2]
[420107331,1775681449233,-500.0,0.00015609,2]
[420107332,1775681449243,-500.0,0.00015609,2]
[420107333,1775681449253,-500.0,0.00015609,2]
[420107334,1775681449263,-500.0,0.00015609,2]
[420107335,1775681449274,-500.0,0.00015609,2]
[420107336,1775681449284,-500.0,0.00015609,2]
[420107337,1775681449293,-500.0,0.00015609,2]
[420107338,1775681449303,-500.0,0.00015609,2]
[420107339,1775681449313,-10000.0,0.0001561,2]
[420107340,1775681449323,-150.0,0.00015613,2]
[420107341,1775681449333,-769.32,0.00015631,2]
[420107342,1775681449343,-1000.0,0.00015635,2]
[420107343,1775681449353,-1000.0,0.00015635,2]
[420107344,1775681449363,-1000.0,0.00015635,2]
[420107345,1775681449373,-1000.0,0.00015635,2]
[420107346,1775681449383,-1000.0,0.00015635,2]
[420107347,1775681449393,-1000.0,0.00015635,2]
[420107348,1775681449403,-1000.0,0.00015635,2]
[420107349,1775681449413,-1000.0,0.00015635,2]
[420107350,1775681449423,-1000.0,0.00015635,2]
[420107351,1775681449434,-1000.0,0.00015635,2]
[420107352,1775681449444,-1000.0,0.00015635,2]
[420107353,1775681449454,-398.985,0.00015635,2]
[420107354,1775681449464,-150.0,0.00015643,2]
[420107355,1775681449474,-250.0,0.00015644,2]
[420107356,1775681449484,-500.0,0.00015648,2]
[420107357,1775681449494,-1372.65078494,0.00015652,2]
[420107358,1775681449504,-4373.0,0.00015657,2]
[420107359,1775681449514,-500.0,0.0001567,2]
[420107360,1775681449523,-500.0,0.0001567,2]
[420107361,1775681449533,-6805.0,0.00015671,2]
[420107362,1775681449543,-500.0,0.00015673,2]
[420107363,1775681449553,-308.60154884,0.00015673,2]
[420107364,1775681449563,-500.27274026,0.00015673,2]
[420107365,1775681449572,-500.0,0.00015673,2]
[420107366,1775681449582,-165.08001948,0.00015673,2]
[420107367,1775681449592,-500.0,0.00015673,2]
[420107368,1775681449603,-500.0,0.00015673,2]
[420107369,1775681449612,-500.0,0.00015673,2]
[420107370,1775681449625,-500.0,0.00015673,2]
[420107371,1775681449635,-500.0,0.00015673,2]
[420107372,1775681449645,-500.0,0.00015673,2]
[420107373,1775681449655,-501.53334874,0.00015673,2]
[420107374,1775681449665,-500.0,0.00015673,2]
[420107375,1775681449674,-500.0,0.00015673,2]
[420107376,1775681449685,-500.0,0.00015673,2]
[420107377,1775681449695,-500.0,0.00015673,2]
[420107378,1775681449705,-500.0,0.00015673,2]
[420107379,1775681449716,-500.0,0.00015673,2]
[420107380,1775681449726,-500.0,0.00015673,2]
[420107381,1775681449735,-500.8742817,0.00015673,2]
[420107382,1775681449746,-500.0,0.00015673,2]
[420107383,1775681449756,-500.0,0.00015673,2]
[420107384,1775681449766,-500.0,0.00015673,2]
[420107385,1775681449777,-500.0,0.00015673,2]
[420107386,1775681449787,-500.0,0.00015673,2]
[420107387,1775681449797,-162.60419222,0.00015673,2]
[420107388,1775681449807,-500.0,0.00015673,2]
[420107389,1775681449817,-500.0,0.00015673,2]
[420107390,1775681449826,-500.0,0.00015673,2]
[420107391,1775681449836,-500.0,0.00015673,2]
[420107392,1775681449846,-527.83727023,0.00015673,2]
[420107393,1775681449856,-474.64837932,0.00015673,2]
[420107394,1775681449866,-164.42313659,0.00015673,2]
[420107395,1775681449876,-500.0,0.00015673,2]
[420107396,1775681449886,-500.0,0.00015673,2]
[420107397,1775681449895,-500.0,0.00015673,2]
[420107398,1775681449905,-500.0,0.00015673,2]
[420107399,1775681449915,-163.13180477,0.00015673,2]
[420107400,1775681449924,-500.0,0.00015673,2]
[420107401,1775681449934,-500.0,0.00015673,2]
[420107402,1775681449944,-499.69188729,0.00015673,2]
[420107403,1775681449955,-500.0,0.00015673,2]
[420107404,1775681449964,-500.0,0.00015673,2]
[420107405,1775681449974,-500.0,0.00015673,2]
[420107406,1775681449984,-166.87044109,0.00015673,2]
[420107407,1775681449993,-288.28066678,0.00015673,2]
[420107408,1775681450003,-500.0,0.00015673,2]
[420107409,1775681450012,-500.0,0.00015673,2]
[420107410,1775681450022,-500.0,0.00015673,2]
[420107411,1775681450032,-501.02489372,0.00015673,2]
[420107412,1775681450042,-500.0,0.00015673,2]
[420107413,1775681450052,-500.0,0.00015673,2]
[420107414,1775681450061,-500.0,0.00015673,2]
[420107415,1775681450071,-1000.0,0.00015676,2]
[420107416,1775681450081,-994.01934182,0.00015677,2]
[420107417,1775681450090,-4373.0,0.0001568,2]
[420107418,1775681450100,-2347.24525423,0.0001568,2]
[420107419,1775681450110,-1573.0,0.0001568,2]
[420107420,1775681450119,-1573.0,0.0001568,2]
[420107421,1775681450129,-349.08,0.00015684,2]
[420107422,1775681450139,-152.05690252,0.0001569,2]
[420107423,1775681450149,-666.0,0.00015699,2]
[420107424,1775681450159,-666.0,0.00015699,2]
[420107425,1775681450169,-1577027.3283143,0.000157,2]
[420107426,1775681451466,-511.95657192,0.000157,2]
[420107427,1775681451478,-2087.35561169,0.000157,2]
[420107428,1775681451663,-350.498,0.000157,2]
[420107429,1775681451675,-761.5476212,0.000157,2]
[420107430,1775681451686,-1954.38851999,0.000157,2]
[420107431,1775681451699,-3487.1,0.000157,2]
[420107432,1775681451710,-53067.82547796,0.000157,2]
[420107433,1775681451749,-2161080.39269702,0.000157,2]
[420107434,1775681451760,-301.76454383,0.000157,2]
[420107435,1775681452201,-108396.94551267,0.000157,2]
[420107436,1775681452212,-1098.01905507,0.000157,2]
[420107437,1775681452223,-582.7291639,0.000157,2]
[420107438,1775681452242,-712.8,0.000157,2]
[420107439,1775681452253,-1339.76704607,0.000157,2]
[420107440,1775681452283,-440.17316181,0.000157,2]
[420107441,1775681452295,-1135.60778418,0.000157,2]
[420107448,1775682567153,-1852.42,0.00010979,2]
[420107449,1775682567176,-152.59,0.00011246,2]
[420107450,1775682567198,-250.0,0.00011276,2]
[420107451,1775682567220,-195.0,0.00011305,2]
[420107452,1775682567242,-250.0,0.00011351,2]
[420107453,1775682567264,-600.0,0.00011363,2]
[420107454,1775682567285,-195.0,0.00011402,2]
[420107455,1775682567307,-195.0,0.00011402,2]
[420107456,1775682567330,-195.0,0.00011402,2]
[420107457,1775682567352,-600.0,0.00011437,2]
[420107458,1775682567374,-600.0,0.00011437,2]
[420107459,1775682567397,-200.0,0.00011481,2]
[420107460,1775682567420,-300.0,0.00011493,2]
[420107461,1775682567442,-1200.0,0.00011494,2]
[420107462,1775682567463,-254.0,0.00011497,2]
[420107463,1775682567484,-300.0,0.00011497,2]
[420107464,1775682567507,-150.0,0.00011498,2]
[420107465,1775682567528,-187.248611,0.00011499,2]
[420107466,1775682567556,-147.15329464,0.00011499,2]
[420107471,1775682634839,-376.36,0.000107,2]
[420107472,1775682634852,-8121.3188596,0.000107,2]
[420107473,1775682634861,-300.0,0.00011498,2]
[420107474,1775682634871,-1200.0,0.00011498,2]
[420107475,1775682634881,-195.0,0.00011499,2]
[420107476,1775682634890,-250.0,0.00011499,2]
[420107477,1775682634900,-34144.25883353,0.00011499,2]
[420107478,1775682634912,-112776.02851069,0.00011499,2]
[420107479,1775682634923,-586.30143549,0.00011499,2]
[420107480,1775682634935,-515.95471448,0.00011499,2]
[420107516,1775682639085,-1287.1,0.00011499,2]
[420107517,1775682639097,-381.56271105,0.00011499,2]
[420107518,1775682639109,-855839.79819476,0.00011499,2]
[420107519,1775682639119,-352.84670536,0.00011499,2]
[420107520,1775682639128,-500.0,0.00011499,2]
[420107521,1775682639137,-500.0,0.00011499,2]
[420107522,1775682639146,-500.0,0.00011499,2]
[420107523,1775682639155,-500.0,0.00011499,2]
[420107524,1775682639164,-500.0,0.00011499,2]
[420107525,1775682639174,-500.0,0.00011499,2]
[420107526,1775682639183,-500.0,0.00011499,2]
[420107527,1775682639192,-500.0,0.00011499,2]
[420107528,1775682639202,-500.0,0.00011499,2]
[420107529,1775682639212,-500.0,0.00011499,2]
[420107530,1775682639221,-500.0,0.00011499,2]
[420107531,1775682639230,-500.0,0.00011499,2]
[420107532,1775682639240,-500.0,0.00011499,2]
[420107533,1775682639249,-500.0,0.00011499,2]
[420107534,1775682639259,-500.0,0.00011499,2]
[420107535,1775682639268,-500.0,0.00011499,2]
[420107536,1775682639278,-500.0,0.00011499,2]
[420107537,1775682639287,-500.0,0.00011499,2]
[420107538,1775682639296,-500.0,0.00011499,2]
[420107539,1775682639305,-500.0,0.00011499,2]
[420107540,1775682639315,-500.0,0.00011499,2]
[420107541,1775682639324,-500.0,0.00011499,2]
[420107542,1775682639333,-500.0,0.00011499,2]
[420107543,1775682639342,-500.0,0.00011499,2]
[420107544,1775682639352,-500.0,0.00011499,2]
[420107545,1775682639361,-500.0,0.00011499,2]
[420107546,1775682639371,-500.0,0.00011499,2]
[420107547,1775682639381,-500.0,0.00011499,2]
[420107548,1775682639390,-500.0,0.00011499,2]
[420107549,1775682639399,-500.0,0.00011499,2]
[420107550,1775682639408,-500.0,0.00011499,2]
[420107551,1775682639418,-500.0,0.00011499,2]
[420107552,1775682639427,-500.0,0.00011499,2]
[420107553,1775682639436,-500.0,0.00011499,2]
[420107554,1775682639446,-500.0,0.00011499,2]
[420107555,1775682639455,-500.0,0.00011499,2]
[420107556,1775682639465,-500.0,0.00011499,2]
[420107557,1775682639475,-500.0,0.00011499,2]
[420107558,1775682639484,-500.0,0.00011499,2]
[420107559,1775682639493,-500.0,0.00011499,2]
[420107560,1775682639504,-500.0,0.00011499,2]
[420107561,1775682639515,-500.0,0.00011499,2]
[420107562,1775682639524,-500.0,0.00011499,2]
[420107563,1775682639534,-500.0,0.00011499,2]
[420107564,1775682639543,-500.0,0.00011499,2]
[420107565,1775682639553,-500.0,0.00011499,2]
[420107566,1775682639562,-500.0,0.00011499,2]
[420107567,1775682639571,-500.0,0.00011499,2]
[420107568,1775682639580,-500.0,0.00011499,2]
[420107569,1775682639590,-500.0,0.00011499,2]
[420107570,1775682639599,-195.17028064,0.00011499,2]
[420107571,1775682639608,-500.0,0.00011499,2]
[420107572,1775682639618,-500.0,0.00011499,2]
[420107573,1775682639627,-500.0,0.00011499,2]
[420107574,1775682639637,-500.0,0.00011499,2]
[420107575,1775682639648,-500.0,0.00011499,2]
[420107576,1775682639658,-600.0,0.000115,2]
[420107577,1775682639668,-187.06446785,0.000115,2]
[420107578,1775682639679,-2157.167,0.000115,2]
[420107579,1775682639689,-177.354,0.000115,2]
[420107580,1775682639699,-13920.32217218,0.000115,2]
[420107581,1775682639709,-701.58124042,0.000115,2]
[420107582,1775682639719,-355.535,0.000115,2]
[420107583,1775682639728,-195.0,0.00011511,2]
[420107584,1775682639749,-195.0,0.00011511,2]
[420107585,1775682639760,-600.0,0.00011556,2]
[420107586,1775682639769,-152.05690252,0.0001159,2]
[420107587,1775682639779,-151.0,0.00011593,2]
[420107588,1775682639788,-151.0,0.00011593,2]
[420107589,1775682639798,-151.0,0.00011593,2]
[420107590,1775682639808,-151.0,0.00011593,2]
[420107591,1775682639818,-151.0,0.00011593,2]
[420107592,1775682639827,-151.0,0.00011593,2]
[420107593,1775682639836,-151.0,0.00011593,2]
[420107594,1775682639845,-500.0,0.00011593,2]
[420107595,1775682639855,-151.0,0.00011593,2]
[420107596,1775682639866,-151.0,0.00011593,2]
[420107597,1775682639876,-151.0,0.00011593,2]
[420107598,1775682639885,-151.0,0.00011593,2]
[420107599,1775682639894,-151.0,0.00011593,2]
[420107600,1775682639904,-151.0,0.00011593,2]
[420107601,1775682639914,-200.0,0.00011593,2]
[420107602,1775682639923,-151.0,0.00011593,2]
[420107603,1775682639933,-151.0,0.00011593,2]
[420107604,1775682639942,-151.0,0.00011593,2]
[420107605,1775682639952,-500.0,0.00011593,2]
[420107606,1775682639961,-152.45672918,0.00011593,2]
[420107607,1775682639970,-500.0,0.00011593,2]
[420107608,1775682639980,-1156.41848616,0.00011593,2]
[420107609,1775682639989,-151.0,0.00011593,2]
[420107610,1775682639998,-991.37648886,0.00011598,2]
[420107611,1775682640008,-358.87116592,0.00011599,2]
[420107612,1775682640018,-1000.0,0.000116,2]
[420107613,1775682640027,-28668.4034,0.000116,2]
[420107614,1775682640036,-186714.0547,0.000116,2]
[420107615,1775682640046,-345.37389572,0.00011699,2]
[420107616,1775682640057,-500.0,0.00011699,2]
[420107617,1775682640066,-500.0,0.00011699,2]
[420107618,1775682640076,-500.0,0.00011699,2]
[420107619,1775682640085,-450.02740231,0.00011699,2]
[420107620,1775682640095,-500.0,0.00011699,2]
[420107622,1775682640593,-222.11251839,0.00011699,2]
[420107623,1775682640603,-500.0,0.00011699,2]
[420107624,1775682640612,-349.62200297,0.00011699,2]
[420107625,1775682640622,-500.0,0.00011699,2]
[420107626,1775682640632,-500.0,0.00011699,2]
[420107627,1775682640641,-500.0,0.00011699,2]
[420107628,1775682640651,-4500.0,0.000117,4]
[420107629,1775682640661,-9100.0,0.000118,4]
[420107630,1775682640670,-150.0,0.000119,2]
[420107631,1775682640681,-13700.0,0.000119,4]
[420107632,1775682640691,-13920.32217218,0.00011956,2]
[420107633,1775682640701,-600.0,0.00012077,2]
[420107634,1775682640710,-200.0,0.00012141,2]
[420107635,1775682640720,-1199.20597015,0.00012141,2]
[420107636,1775682640730,-187.06446779,0.00012233,2]
[420107637,1775682640739,-14633.19503942,0.00012368,2]
[420107638,1775682640749,-600.0,0.00012371,2]
[420107639,1775682640759,-195.0,0.00012371,2]
[420107640,1775682640768,-250.0,0.00012371,2]
[420107641,1775682640778,-13920.32217218,0.00012411,2]
[420107642,1775682640788,-2471.0,0.00012483,2]
[420107643,1775682640797,-415.0,0.00012483,2]
[420107644,1775682640807,-500.0,0.000125,2]
[420107645,1775682640817,-500.0,0.000125,2]
[420107646,1775682640827,-967.26243953,0.0001251,2]
[420107647,1775682640836,-1583.1479154,0.0001251,2]
[420107648,1775682640846,-500.0,0.00012567,2]
[420107649,1775682640855,-255.0,0.00012567,2]
[420107650,1775682640865,-500.0,0.00012573,2]
[420107651,1775682640874,-420.0,0.00012629,2]
[420107652,1775682640884,-195.0,0.00012648,2]
[420107653,1775682640894,-250.0,0.00012648,2]
[420107654,1775682640903,-1680.0,0.00012648,2]
[420107655,1775682640913,-600.0,0.00012649,2]
[420107656,1775682640923,-200.0,0.00012689,2]
[420107657,1775682640933,-1140.85523569,0.00012689,2]
[420107658,1775682640942,-13920.32217218,0.00012867,2]
[420107659,1775682640952,-200.0,0.00012904,2]
[420107660,1775682640962,-217.0,0.00012904,2]
[420107661,1775682640971,-273.0,0.00012904,2]
[420107662,1775682640981,-250.0,0.00012904,2]
[420107663,1775682640992,-203.119,0.00012904,2]
[420107664,1775682641002,-250.0,0.00012904,2]
[420107665,1775682641011,-208.195,0.00012904,2]
[420107666,1775682641021,-250.0,0.00012904,2]
[420107667,1775682641030,-163.308,0.00012904,2]
[420107668,1775682641040,-250.0,0.00012904,2]
[420107669,1775682641050,-155.122,0.00012904,2]
[420107670,1775682641060,-193.665,0.00012904,2]
[420107671,1775682641069,-166.211,0.00012904,2]
[420107672,1775682641079,-250.0,0.00012904,2]
[420107673,1775682641089,-215.048,0.00012904,2]
[420107674,1775682641099,-180.0,0.00012904,2]
[420107675,1775682641108,-3524.0,0.00012904,2]
[420107676,1775682641117,-1363.382,0.00012904,2]
[420107677,1775682641127,-631.205,0.00012904,2]
[420107678,1775682641137,-277.201,0.00012904,2]
[420107679,1775682641147,-1269.291,0.00012904,2]
[420107680,1775682641157,-1217.0,0.00012904,2]
[420107681,1775682641167,-926.0,0.00012904,2]
[420107682,1775682641178,-278.98,0.0001294,2]
[420107683,1775682641189,-187.06446779,0.00012967,2]
[420107684,1775682641199,-100103.49272567,0.00012999,2]
[420107685,1775682641209,-1000.0,0.00013048,2]
[420107686,1775682641219,-1000.0,0.00013048,2]
[420107687,1775682641229,-501.0,0.000131,2]
[420107688,1775682641239,-1000.0,0.00013115,2]
[420107689,1775682641249,-1000.0,0.00013121,2]
[420107690,1775682641259,-150.88467267,0.00013151,2]
[420107691,1775682641269,-160.5097946,0.00013151,2]
[420107692,1775682641279,-150.0,0.00013151,2]
[420107693,1775682641289,-150.0,0.00013151,2]
[420107694,1775682641299,-150.0,0.00013151,2]
[420107695,1775682641308,-150.0,0.00013151,2]
[420107696,1775682641317,-150.0,0.00013151,2]
[420107697,1775682641327,-150.0,0.00013151,2]
[420107698,1775682641337,-150.0,0.00013151,2]
[420107699,1775682641347,-150.0,0.00013151,2]
[420107700,1775682641357,-176.0009961,0.00013151,2]
[420107701,1775682641367,-150.0,0.00013151,2]
[420107702,1775682641376,-150.0,0.00013151,2]
[420107703,1775682641387,-185.23665201,0.00013151,2]
[420107704,1775682641396,-150.0,0.00013151,2]
[420107705,1775682641406,-150.0,0.00013151,2]
[420107706,1775682641417,-150.0,0.00013151,2]
[420107707,1775682641427,-150.0,0.00013151,2]
[420107708,1775682641437,-286.3666211,0.00013151,2]
[420107709,1775682641447,-583.0,0.00013151,2]
[420107710,1775682641456,-583.0,0.00013151,2]
[420107711,1775682641466,-583.0,0.00013151,2]
[420107712,1775682641476,-583.0,0.00013151,2]
[420107713,1775682641486,-583.0,0.00013151,2]
[420107714,1775682641496,-583.0,0.00013151,2]
[420107715,1775682641507,-583.0,0.00013151,2]
[420107716,1775682641517,-583.0,0.00013151,2]
[420107717,1775682641527,-583.0,0.00013151,2]
[420107718,1775682641537,-583.0,0.00013151,2]
[420107719,1775682641547,-583.0,0.00013151,2]
[420107720,1775682641557,-583.0,0.00013151,2]
[420107721,1775682641566,-500.0,0.00013151,2]
[420107722,1775682641577,-500.0,0.00013151,2]
[420107724,1775682641587,-500.0,0.00013151,2]
[420107725,1775682641597,-500.0,0.00013151,2]
[420107726,1775682641606,-152.12238144,0.00013151,2]
[420107727,1775682641616,-583.0,0.00013151,2]
[420107728,1775682641626,-583.0,0.00013151,2]
[420107729,1775682641635,-583.0,0.00013151,2]
[420107730,1775682641645,-583.0,0.00013151,2]
[420107731,1775682641655,-583.0,0.00013151,2]
[420107732,1775682641664,-583.0,0.00013151,2]
[420107733,1775682641675,-583.0,0.00013151,2]
[420107734,1775682641684,-583.0,0.00013151,2]
[420107735,1775682641697,-583.0,0.00013151,2]
[420107736,1775682641707,-583.0,0.00013151,2]
[420107737,1775682641717,-583.0,0.00013151,2]
[420107738,1775682641728,-605.0,0.00013151,2]
[420107739,1775682641738,-500.0,0.00013151,2]
[420107740,1775682641748,-500.0,0.00013151,2]
[420107741,1775682641758,-500.0,0.00013151,2]
[420107742,1775682641768,-500.0,0.00013151,2]
[420107743,1775682641779,-500.0,0.00013151,2]
[420107744,1775682641789,-500.0,0.00013151,2]